[Event "Silves Open 2025"]
[Site "Fissul"]
[Date "2025.03.03"]
[Round "1.1"]
[White "Salas Munoz, Paulino Jose"]
[Black "Espinosa Aranda, Angel"]
[Result "0-1"]
[Annotator "TA"]
[ECO "B40"]
[WhiteElo "1915"]
[BlackElo "2442"]
[PlyCount "48"]
[EventDate "2025.03.03"]
[EventType "swiss"]
[EventCountry "POR"]
[SourceTitle "playchess.com"]
[Source "ChessBase"]
[SourceQuality "1"]
[TimeControl "5400+30"]

{[%evp 9,48,26,30,25,34,43,32,4,29,0,18,-18,-27,-28,-8,-56,-67,-64,-50,-56,-47,-99,-96,-116,-111,-220,-212,-296,-190,-292,-261,-332,-334,-393,-376,-411,-425,-658,-654,-1264,-1243]} 1. e4 {[%emt 0:00:08]} c5 {[%emt 0:00:16]} 2. Nf3 {[%emt 0:00:28]} a6 {[%emt 0:00:54]} 3. c4 {[%emt 0:02:09]} e6 {[%emt 0:01:14]} 4. Nc3 {[%emt 0:02:00]} Qc7 {[%emt 0:05:15]} 5. g3 {[%emt 0:03:41]} Nc6 {[%emt 0:02:15]} 6. Bg2 {[%emt 0:02:25] B40: Sicilian: 2...e6, Unusual lines.} Nf6 {[%emt 0:00:59][%cal Ob7b5]} 7. O-O {[%emt 0:00:46]} Be7 {[%emt 0:03:05]} 8. Re1 {[%emt 0:00:51] White is slightly better.} d6 {[%emt 0:01:43]} 9. d3 {[%emt 0:04:46]} O-O {[%emt 0:00:13]} 10. h3 {[%emt 0:02:04]} Rb8 {[%emt 0:01:53]} 11. a4 {[%emt 0:05:48]} Nd7 $146 {[%emt 0:03:51]} ({Predecessor:} 11... Ne5 12. Bf4 Bd7 13. b3 Rfd8 14. Qc2 Nc6 15. Rad1 Nd4 16. Nxd4 cxd4 17. Ne2 b5 18. axb5 axb5 {½-½ Ribeiro,G (2183)-Elmi,S (2383) EU-ch U18 blitz 2024 (15)}) 12. Bg5 {[%emt 0:10:09]} (12. d4 $11) 12... Bxg5 $15 {[%emt 0:05:32]} 13. Nxg5 {[%emt 0:00:13]} h6 {[%emt 0:00:56]} 14. Nf3 {[%emt 0:00:21]} Nde5 {[%emt 0:00:55]} 15. Nxe5 {[%emt 0:13:59]} (15. Nh2 $15) 15... dxe5 $17 {[%emt 0:00:04]} (15... Nxe5 16. b3 $11) 16. Qh5 {[%emt 0:03:38]} Bd7 {[%emt 0:07:49]} 17. g4 {[%emt 0:14:30] [#]} (17. h4 $17) 17... Qd8 $1 $19 {[%emt 0:08:35]} 18. f4 {[%emt 0:14:17]} Be8 {[%emt 0:07:47]} (18... exf4 19. Qxc5 e5 20. Qf2 $17) 19. g5 {[%emt 0:05:31]} (19. f5 $142) 19... f5 {[%emt 0:00:47]} (19... exf4 20. gxh6 f5 (20... Qxd3 21. hxg7 Qd4+ 22. Kh1 $15) 21. Qf3 $17) 20. Qh4 {[%emt 0:05:24]} exf4 {[%emt 0:01:06]} (20... Qxd3 21. gxh6 Qd8 (21... Qxc4 22. hxg7 Kxg7 23. Rad1 $16) 22. Qxd8 Rxd8 23. hxg7 Kxg7 24. exf5 $11) 21. exf5 {[%emt 0:02:50]} Rxf5 {[%emt 0:06:19] [#] Strongly threatening ...f3.} (21... hxg5 22. Qf2 Rxf5 (22... Qxd3 23. fxe6 Qf5 24. e7 $11) (22... exf5 $2 23. Nd5 $19) 23. Rxe6 $19) 22. Qf2 {[%emt 0:04:56]} f3 {[%emt 0:00:41]} (22... hxg5 23. Rxe6 Bf7 (23... Qxd3 24. Rd1 $17) 24. Re4 $19) ({Don't play} 22... Qxg5 23. Ne4 Qe7 24. Nd2 $19) (22... Rxg5 23. Qxf4 Nd4 (23... Qxd3 24. Rxe6 Rd8 25. Rf1 $19) 24. Rac1 $19) (22... Qxd3 23. Rad1 Qxc4 24. gxh6 $11) 23. Rxe6 {[%emt 0:00:23]} (23. Bf1 $142) 23... Qxg5 {[%emt 0:04:19]} (23... hxg5 $2 24. Re3 $19) 24. Rf1 {[%emt 0:00:26]} fxg2 {[%emt 0:00:28] Weighted Error Value: White=1.01/Black=0.10 (very precise)   Mistake:       	White=5     	---        Inaccurate:     	White=5     	Black=1      OK:         	White=3     	Black=11} ({Less strong is} 24... Qxg2+ 25. Qxg2 fxg2 26. Rxf5 $17) 0-1

[Event "Silves Open 2025"]
[Site "Fissul"]
[Date "2025.03.03"]
[Round "1.3"]
[White "Santos, Jose P"]
[Black "Kuegel, Tobias"]
[Result "1-0"]
[Annotator "TA"]
[ECO "C02"]
[WhiteElo "2273"]
[BlackElo "2423"]
[PlyCount "139"]
[EventDate "2025.03.03"]
[EventType "swiss"]
[EventCountry "POR"]
[SourceTitle "playchess.com"]
[Source "ChessBase"]
[SourceQuality "1"]
[TimeControl "5400+30"]

{[%evp 19,139,-27,-28,-27,-20,-43,-37,-46,0,0,0,-43,-37,-37,-29,-81,-78,-92,-73,-80,-75,-79,-79,-76,-76,-83,-87,-120,-102,-138,-102,-105,-98,-101,-12,-11,-14,-8,-8,-4,0,0,0,0,0,0,0,0,0,0,0,0,200,0,0,0,0,0,0,0,0,0,0,-39,-9,-39,-12,-39,-12,-15,-19,-98,-27,-37,-29,-187,-26,-35,-36,-22,0,-179,485,486,789,786,733,641,968,939,834,728,964,965,1029,1016,29955,29948,29993,29971,5389,5293,29974,29975,29967,29960,29984,29985,29986,29984,29986,29987,29987,29988,29988,29989,29989,29990,29990,29991,29992,29992]} 1. e4 {[%emt 0:03:32]} e6 {[%emt 0:03:18]} 2. d4 {[%emt 0:00:13]} d5 {[%emt 0:00:05]} 3. e5 {[%emt 0:00:10]} c5 {[%emt 0:00:05]} 4. c3 {[%emt 0:00:05]} Nc6 {[%emt 0:00:07]} 5. Nf3 {[%emt 0:00:06]} Qb6 {[%emt 0:00:17]} 6. Be2 {[%emt 0:03:16]} cxd4 {[%emt 0:00:38]} 7. cxd4 {[%emt 0:00:05]} Nh6 {[%emt 0:00:06]} 8. Nc3 {[%emt 0:15:47]} Nf5 {[%emt 0:01:35]} 9. Bb5 {[%emt 0:08:17]} Bd7 {[%emt 0:02:58]} 10. Bxc6 {[%emt 0:03:49]} Bxc6 {[%emt 0:02:49]} 11. O-O {[%emt 0:00:15] C02: French: Advance Variation.} Rc8 {[%emt 0:01:58]} 12. a3 {[%emt 0:01:58]} h6 $146 {[%emt 0:03:10]} (12... Bb5 13. Re1 Rc4 14. Qb3 Ba4 15. Qxb6 axb6 16. Nxa4 Rxa4 17. b3 Ra6 18. g4 Ne7 19. b4 b5 20. Nd2 Nc6 21. Bb2 Be7 22. Nb3 b6 23. f4 Kd7 24. Rac1 Rc8 25. Re2 Ra7 {½-½ Tomassoni,L (1667)-Bandieramonte,G (1506) Varese op 19th 2022 (5)}) 13. Qd3 {[%emt 0:03:01] Black is slightly better.} Qb3 {[%emt 0:03:55]} 14. Nd2 {[%emt 0:03:03]} Qb6 {[%emt 0:00:07]} 15. Nf3 {[%emt 0:00:08]} a6 {[%emt 0:00:04]} 16. Rd1 {[%emt 0:00:39]} Be7 {[%emt 0:02:57]} 17. b4 {[%emt 0:06:11]} (17. g4 $11 Nh4 18. Nxh4 Bxh4 19. f4) 17... O-O $17 {[%emt 0:03:18]} 18. Rb1 {[%emt 0:01:32]} Bb5 {[%emt 0:02:03]} 19. Nxb5 {[%emt 0:00:31]} Qxb5 {[%emt 0:00:14]} 20. Bb2 {[%emt 0:26:46]} Rc4 {[%emt 0:06:03]} 21. h3 {[%emt 0:07:56]} Rfc8 {[%emt 0:00:56]} 22. Ne1 {[%emt 0:02:47]} Bd8 {[%emt 0:01:59]} 23. Qd2 {[%emt 0:00:35]} Bb6 {[%emt 0:01:32]} 24. Qf4 {[%emt 0:00:59]} Qd7 {[%emt 0:04:43]} 25. g4 {[%emt 0:01:41]} g5 {[%emt 0:14:36]} 26. Qd2 {[%emt 0:00:08]} Nxd4 {[%emt 0:01:03]} (26... Nh4 $17 27. Qd3 Qa4) 27. Qe3 $1 $11 {[%emt 0:05:07][%cal Rb2d4] [#]} Rc3 $1 {[%emt 0:12:40]} 28. Bxc3 {[%emt 0:01:05] [#]} Rxc3 {[%emt 0:00:04]} 29. Rd3 $132 {[%emt 0:00:05][%mdl 2048] White is fighting back} Rxd3 {[%emt 0:00:10]} (29... Rc4 $6 30. Rbd1 $16) 30. Qxd3 {[%emt 0:00:08]} Qc7 {[%emt 0:00:26] Prevents Rc1} 31. Nf3 {[%emt 0:01:31]} Nxf3+ {[%emt 0:05:08]} 32. Qxf3 {[%emt 0:00:06]} Qxe5 {[%emt 0:00:37][%mdl 4096] Endgame KQR-KQB} 33. Rc1 {[%emt 0:01:06]} Kg7 {[%emt 0:00:21]} 34. Kg2 {[%emt 0:01:10]} Ba7 {[%emt 0:03:30]} 35. Rc8 {[%emt 0:01:00]} Bb6 $2 {[%emt 0:10:29]} (35... Bd4 $11 {and Black has nothing to worry.}) 36. Rc2 $2 {[%emt 0:01:08]} (36. Re8 $18) 36... Qd6 {[%emt 0:03:48]} 37. Rd2 {[%emt 0:00:44]} Bc7 {[%emt 0:02:33]} 38. Rc2 {[%emt 0:00:50] Strongly threatening Qc3+.} Bb6 {[%emt 0:01:20]} 39. Re2 {[%emt 0:00:33]} Qc6 {[%emt 0:00:49]} 40. Rd2 {[%emt 0:00:26]} Bc7 {[%emt 0:01:32]} 41. Rd1 {[%emt 0:00:20]} Be5 {[%emt 0:01:43]} 42. Rh1 {[%emt 0:00:21]} Bf4 {[%emt 0:00:41]} 43. Rd1 {[%emt 0:00:07]} b5 {[%emt 0:00:34]} (43... Qc4 {keeps more tension.} 44. Qd3 Kf6 45. Kf3 b5) 44. h4 {[%emt 0:00:11]} Qc4 {[%emt 0:02:02]} 45. h5 {[%emt 0:00:37]} (45. hxg5 $11 hxg5 46. Re1) 45... Be5 {[%emt 0:00:57]} (45... d4 $17) 46. Re1 {[%emt 0:00:26]} Bb2 {[%emt 0:00:38]} 47. Rd1 $2 {[%emt 0:00:23]} (47. Re3 $1 $11) 47... Bf6 $2 {[%emt 0:01:00]} ({Black should try} 47... Bxa3 $1 $19 48. Ra1 Bxb4 49. Rxa6 Bd2) 48. Rd3 {[%emt 0:00:10]} Bd4 {[%emt 0:01:50]} 49. Qd1 {[%emt 0:00:48]} e5 {[%emt 0:00:33][%cal Be6e5,Be5e4][%mdl 32]} 50. Rf3 $2 {[%emt 0:00:35]} (50. Rd2 $11 {and White stays safe.}) 50... Qa2 $4 {[%emt 0:00:45][%mdl 8192] [#]} (50... e4 $19 {and life is good for Black.} 51. Rf5 f6) 51. Qd3 $18 {[%emt 0:00:15]} Qc4 {[%emt 0:00:40]} (51... Bb2 $142) 52. Qf5 {[%emt 0:00:15]} Qc7 {[%emt 0:00:06]} 53. Qf6+ {[%emt 0:00:06]} Kg8 {[%emt 0:00:31] and ...e4 would now be decisive} 54. Qxh6 {[%emt 0:00:23][%cal Of3f5] White wants to mate with Rf5!.} e4 {[%emt 0:00:47]} 55. Qxg5+ {[%emt 0:00:05]} Kf8 {[%emt 0:00:20]} 56. Rf5 {[%emt 0:00:19]} e3 {[%emt 0:00:10]} 57. fxe3 {[%emt 0:01:43]} Qc2+ {[%emt 0:00:12]} 58. Kh3 {[%emt 0:00:54]} Qd3 {[%emt 0:01:11] [#]} 59. Rxf7+ $3 {[%emt 0:00:59][%mdl 512]} Kxf7 {[%emt 0:00:11]} 60. Qxd5+ {[%emt 0:00:04]} Ke7 {[%emt 0:00:41]} 61. Qxd4 {[%emt 0:00:05] KQ-KQ. White is 3 pawns up. White mates.} Qf1+ {[%emt 0:00:28]} 62. Kh4 {[%emt 0:00:07]} Qh1+ {[%emt 0:00:38]} 63. Kg5 {[%emt 0:00:04]} Kf7 {[%emt 0:00:10]} 64. h6 {[%emt 0:00:10]} Ke6 {[%emt 0:00:13]} 65. Qf6+ {[%emt 0:00:23]} Kd5 {[%emt 0:00:04]} 66. Qf7+ {[%emt 0:00:08]} Kd6 {[%emt 0:00:16]} 67. h7 {[%emt 0:00:07]} Kc6 {[%emt 0:00:37]} 68. Qf6+ {[%emt 0:00:08]} Kb7 {[%emt 0:00:06]} 69. h8=Q {[%emt 0:00:10]} Qd5+ {[%emt 0:00:04]} 70. Qe5 {[%emt 0:00:08] Weighted Error Value: White=0.25 (precise) /Black=0.74  Loses game:     	White=1     	Black=1      Missed win:     	White=1     	Black=2      Mistake:       	White=3     	Black=3      Inaccurate:     	White=5     	Black=3      OK:         	White=15    	Black=8      Best:        	White=1     	---        Strong:       	White=1     	---        Brilliant:      	---       	Black=2} 1-0

[Event "Silves Open 2025"]
[Site "Fissul"]
[Date "2025.03.03"]
[Round "1.6"]
[White "Alshameary Puente, Ismael"]
[Black "Pena, Helio Adelino Silva"]
[Result "1-0"]
[Annotator "TA"]
[ECO "E20"]
[WhiteElo "2343"]
[BlackElo "1842"]
[PlyCount "105"]
[EventDate "2025.03.03"]
[EventType "swiss"]
[EventCountry "POR"]
[SourceTitle "playchess.com"]
[Source "ChessBase"]
[SourceQuality "1"]
[TimeControl "5400+30"]

{[%evp 9,105,37,170,8,66,52,58,22,29,10,14,3,29,53,41,18,71,43,102,94,115,58,68,46,53,43,160,142,119,73,118,102,120,111,95,106,285,283,281,289,258,262,256,266,255,205,238,227,219,218,226,179,188,179,177,174,185,179,219,214,249,231,239,234,238,232,245,237,238,228,279,289,435,284,402,373,408,395,532,549,682,556,535,512,495,492,467,431,874,873,1331,1318,29979,29980,29980,29979,29989,29990]} 1. d4 {[%emt 0:00:04]} Nf6 {[%emt 0:00:19]} 2. c4 {[%emt 0:00:06]} e6 {[%emt 0:00:14]} 3. Nc3 {[%emt 0:00:21]} Bb4 {[%emt 0:01:05]} 4. f3 {[%emt 0:00:57]} h6 {[%emt 0:01:16]} 5. e4 {[%emt 0:00:51]} d6 {[%emt 0:00:37] [#]} (5... c5 $14) 6. Bd3 $2 {[%emt 0:00:20] E20: Nimzo-Indian: 4 g3 and 4 f3.} (6. Qa4+ $1 $18 Nc6 7. d5) 6... Nbd7 $146 {[%emt 0:04:15]} (6... c5 $11) (6... O-O 7. Nge2 e5 8. Be3 exd4 9. Nxd4 Bxc3+ 10. bxc3 Nbd7 11. g4 Ne5 12. Be2 Nh7 {1-0 Retamozo,K (1916)-Ishiguro,J Lima Morales Memorial op 3rd 2013 (1)}) 7. Nge2 {[%emt 0:00:18]} c5 {[%emt 0:00:52]} 8. d5 {[%emt 0:00:46] White is slightly better.} Ne5 {[%emt 0:00:29][%cal Ob7b5]} 9. O-O {[%emt 0:00:29]} exd5 {[%emt 0:02:42]} 10. cxd5 {[%emt 0:01:32]} Nxd3 {[%emt 0:01:19]} 11. Qxd3 {[%emt 0:00:06]} O-O {[%emt 0:00:36]} 12. Ng3 {[%emt 0:01:55]} Ba5 {[%emt 0:02:30]} (12... Nd7 $11) 13. Bf4 {[%emt 0:01:17]} Re8 {[%emt 0:00:38]} ({Better is} 13... Ne8 $14) 14. Nb5 $16 {[%emt 0:03:28]} Bc7 {[%emt 0:00:11]} 15. Rac1 {[%emt 0:01:34]} (15. a4 $16) 15... Bb8 $14 {[%emt 0:00:44]} 16. a4 {[%emt 0:03:26]} a6 {[%emt 0:00:26]} 17. Na3 {[%emt 0:00:35]} Ba7 {[%emt 0:02:05]} (17... Bd7 $14) 18. Kh1 {[%emt 0:00:28]} Bb8 {[%emt 0:04:20]} 19. Qc3 {[%emt 0:06:44]} ({White should try} 19. Qd2) 19... Bc7 {[%emt 0:02:24]} 20. b4 {[%emt 0:03:21]} b6 {[%emt 0:00:21]} 21. bxc5 {[%emt 0:08:17]} bxc5 {[%emt 0:00:23]} 22. Nc4 {[%emt 0:00:32] White has more active pieces.} g5 $2 {[%emt 0:10:21] A mistake that costs the game.} (22... Rb8 $16) 23. Bd2 $18 {[%emt 0:01:34]} Bd7 {[%emt 0:03:30]} 24. Ra1 {[%emt 0:07:53]} Rb8 {[%emt 0:03:17]} 25. Bc1 {[%emt 0:00:52]} Nh7 {[%emt 0:06:57]} 26. Bb2 {[%emt 0:01:03]} f6 {[%emt 0:00:15]} 27. Ne3 {[%emt 0:00:43]} Ba5 {[%emt 0:03:08]} 28. Qc1 {[%emt 0:08:58]} Qe7 {[%emt 0:00:39]} 29. Qc2 {[%emt 0:09:25]} Rb7 {[%emt 0:05:15]} 30. Qe2 {[%emt 0:02:22]} Reb8 {[%emt 0:15:16]} 31. Ngf5 {[%emt 0:16:17]} Qf8 {[%emt 0:00:39]} 32. Qxa6 {[%emt 0:02:32]} Bd2 {[%emt 0:09:10] [#] And now ...Rb6 would win.} 33. Bc1 $1 $36 {[%emt 0:00:06][%mdl 2048] Black is under strong pressure.} (33. Nxd6 Rxb2 34. Ndf5 R2b4 $19) 33... Rb6 {[%emt 0:01:04]} 34. Qd3 {[%emt 0:01:58]} Ba5 {[%emt 0:01:47][%cal Bd2a5,Ba5c3,Bc3e5][%mdl 32]} 35. Qe2 {[%emt 0:03:30]} Bc3 {[%emt 0:04:48]} 36. Ra2 {[%emt 0:01:42]} Rb4 {[%emt 0:06:15]} 37. Qc2 {[%emt 0:03:10]} Be5 {[%emt 0:00:59]} 38. g3 {[%emt 0:00:30]} Bd4 {[%emt 0:02:03]} 39. a5 {[%emt 0:02:12]} Bb5 {[%emt 0:01:05]} 40. Re1 {[%emt 0:00:48] aiming for Bd2.} ({And not} 40. Bd2 Bxe3 41. Nxe3 Bxf1 42. Nxf1 (42. Bxb4 $2 {too greedy.} cxb4 43. Rb2 Bh3 $19) 42... Rb1 $14) 40... Ba6 {[%emt 0:00:22]} (40... Bxe3 41. Nxe3 (41. Bxe3 Bd7 $18) 41... Ba6) 41. Nxd4 {[%emt 0:01:46]} cxd4 {[%emt 0:00:23]} (41... Rxd4 {was necessary.} 42. Ra3 Rdb4) 42. Nf5 {[%emt 0:00:07][%cal Be3f5,Bf5d4,Bd4c6][%mdl 32]} Rc4 {[%emt 0:04:10]} 43. Qd2 {[%emt 0:00:41]} Rbc8 {[%emt 0:01:22]} 44. Ba3 {[%emt 0:02:19]} R4c5 {[%emt 0:00:53]} 45. Nxd4 {[%emt 0:02:06]} Rc3 {[%emt 0:00:48]} 46. Re3 {[%emt 0:01:01]} Rxe3 {[%emt 0:00:46]} 47. Qxe3 {[%emt 0:00:03]} Qd8 {[%emt 0:00:29]} 48. Nc6 {[%emt 0:01:31]} Qc7 {[%emt 0:00:18]} (48... Qd7 $142 49. Rb2 Bb7) 49. Qb6 {[%emt 0:00:31]} Bc4 {[%emt 0:00:42]} 50. Rc2 {[%emt 0:00:18]} Bd3 {[%emt 0:00:20] [#]} 51. Ne7+ $1 {[%emt 0:00:32][%mdl 512] White mates.} Qxe7 {[%emt 0:00:05]} 52. Rxc8+ {[%emt 0:00:05]} Nf8 {[%emt 0:00:05]} 53. Bxd6 {[%emt 0:00:12] Weighted Error Value: White=0.22 (precise) /Black=0.63  Loses game:     	---       	Black=1      Mistake:       	White=2     	Black=7      Inaccurate:     	White=3     	Black=4      OK:         	White=14    	Black=13     Best:        	White=2     	Black=4      Strong:       	White=1     	---} 1-0

[Event "Silves Open 2025"]
[Site "Fissul"]
[Date "2025.03.03"]
[Round "1.7"]
[White "Almeida, Marta Dias"]
[Black "Lux, Hugo de Melo"]
[Result "0-1"]
[Annotator "TA"]
[ECO "A70"]
[WhiteElo "1790"]
[BlackElo "2329"]
[PlyCount "62"]
[EventDate "2025.03.03"]
[EventType "swiss"]
[EventCountry "POR"]
[SourceTitle "playchess.com"]
[Source "ChessBase"]
[SourceQuality "1"]
[TimeControl "5400+30"]

{[%evp 25,62,16,7,0,0,0,18,0,0,-33,0,0,0,0,0,0,0,0,0,-9,-8,-17,-2,-34,-43,-116,-108,-125,-92,-109,-111,-129,-99,-595,-587,-531,-364,-745,-588]} 1. d4 {[%emt 0:00:02]} Nf6 {[%emt 0:00:16]} 2. c4 {[%emt 0:00:10]} e6 {[%emt 0:01:02]} 3. Nf3 {[%emt 0:00:15]} c5 {[%emt 0:00:32]} 4. d5 {[%emt 0:01:04]} d6 {[%emt 0:00:21]} 5. Nc3 {[%emt 0:00:32]} exd5 {[%emt 0:00:06]} 6. cxd5 {[%emt 0:00:16]} g6 {[%emt 0:00:05]} 7. e4 {[%emt 0:00:55]} Bg7 {[%emt 0:00:50]} 8. Bd3 {[%emt 0:01:29]} a6 {[%emt 0:01:42]} 9. a4 {[%emt 0:00:54]} Bg4 {[%emt 0:00:04]} 10. h3 {[%emt 0:02:27]} Bxf3 {[%emt 0:00:05]} 11. Qxf3 {[%emt 0:00:07]} O-O {[%emt 0:00:16]} 12. Bf4 {[%emt 0:02:06]} Qe7 {[%emt 0:08:29]} 13. O-O {[%emt 0:01:02]} Nbd7 {[%emt 0:00:15]} 14. Rfe1 {[%emt 0:07:32] A70: Modern Benoni: 6 e4 g6 7 Nf3.} Nh5 {[%emt 0:04:44] Wards off Qg3} 15. Bh2 {[%emt 0:03:25]} Ne5 {[%emt 0:01:35]} 16. Qe2 {[%emt 0:04:18] The position is equal.} (16. Qe3 {simplifies} Nxd3 17. Qxd3 Rfe8 18. g4) 16... Qg5 {[%emt 0:11:37]} 17. a5 $146 {[%emt 0:09:00]} (17. Kh1 Nf4 18. Bxf4 Qxf4 19. g3 Qf3+ 20. Qxf3 Nxf3 21. Red1 Nd4 22. Rab1 Rac8 23. Kg2 {0-1 Aguilera,D (1699)-Savoretti,E (1922) Rosario Seniors op 2018 (1)}) 17... Rae8 {[%emt 0:15:16]} 18. Qe3 {[%emt 0:11:24]} Qxe3 {[%emt 0:10:29]} 19. Rxe3 {[%emt 0:00:08]} Bh6 {[%emt 0:00:34]} 20. Bxe5 $1 {[%emt 0:00:19]} Rxe5 {[%emt 0:00:22]} 21. Ree1 {[%emt 0:03:46]} Rfe8 {[%emt 0:07:10]} 22. g3 {[%emt 0:03:11]} f5 {[%emt 0:12:20]} 23. Ra4 {[%emt 0:04:29]} R5e7 {[%emt 0:02:49][%cal Be5e7,Be7f7,Bf7f3,Bf3g3][%mdl 32]} 24. Re2 {[%emt 0:02:05]} f4 {[%emt 0:06:56]} 25. Kg2 {[%emt 0:02:56]} (25. g4 f3 26. gxh5 fxe2 27. Bxe2 Bd2 $19) ({Better is} 25. e5 $15 fxg3 (25... dxe5 26. Ne4 $16) 26. exd6 gxf2+ 27. Kxf2 Rf7+ 28. Ke1) 25... Rf7 $17 {[%emt 0:06:13] [#]} 26. Rc2 {[%emt 0:03:56]} fxg3 {[%emt 0:00:56]} 27. fxg3 {[%emt 0:00:12]} Ref8 {[%emt 0:00:30] Hoping for ...Rf3. Black is much more active.} 28. e5 {[%emt 0:02:49]} Rf3 $36 {[%emt 0:00:11][%mdl 2048] Black is on the roll.} (28... dxe5 29. Bc4 Kh8 30. Ne4 $16) 29. Be4 $2 {[%emt 0:01:33][%mdl 8192]} (29. g4 $17 {nothing else works.} Rg3+ (29... Rxd3 30. gxh5 Bf4 31. Rxf4 $17) 30. Kh2) 29... Rxg3+ $19 {[%emt 0:00:12]} 30. Kh2 {[%emt 0:00:09]} Bf4 {[%emt 0:00:17] [#] ( -> ...Rg5+)} ({Not} 30... dxe5 31. d6 $17) 31. Kh1 $2 {[%emt 0:00:38]} (31. Ne2 Ra3+ 32. Nxf4 Rxa4 33. Nxh5 gxh5 34. Rg2+ Kh8 35. Bc2 Rxa5 36. e6) 31... Bxe5 {[%emt 0:01:05] Weighted Error Value: White=0.81/Black=0.18 (very precise)   Loses game:     	White=1     	---        Mistake:       	White=2     	---        Inaccurate:     	White=2     	Black=2      OK:         	White=2     	Black=6      Best:        	White=3     	Black=3      Strong:       	White=1     	---} 0-1

[Event "Silves Open 2025"]
[Site "Fissul"]
[Date "2025.03.03"]
[Round "1.8"]
[White "Fernandes, Antonio"]
[Black "Van Ginkel, Henk"]
[Result "1-0"]
[Annotator "TA"]
[ECO "B07"]
[WhiteElo "2326"]
[BlackElo "1811"]
[PlyCount "55"]
[EventDate "2025.03.03"]
[EventType "swiss"]
[EventCountry "POR"]
[SourceTitle "playchess.com"]
[Source "ChessBase"]
[SourceQuality "1"]
[TimeControl "5400+30"]

{[%evp 14,55,25,12,49,34,27,18,18,25,14,16,18,15,58,58,101,85,95,87,171,162,171,172,163,165,145,147,154,143,153,155,195,208,693,686,691,651,2367,2302,5293,848,1389,0]} 1. d4 d6 2. e4 Nf6 3. Nc3 g6 4. g3 Bg7 5. Bg2 O-O 6. Nge2 e5 7. h3 {[%emt 0:03:30]} c6 {[%emt 0:03:30]} 8. a4 {[%emt 1:31:00]} b6 {B07: Pirc Defence: Miscellaneous Systems.} 9. O-O {[%emt 0:00:00]} Nbd7 {[%emt 0:36:18][%cal Bb8d7,Bd7e5,Be5f7][%mdl 32]} 10. Bg5 {[%emt 0:00:00]} Qc7 {[%emt 0:02:03] The position is equal.} 11. Qd2 {[%emt 0:00:00]} Ba6 $146 {[%emt 0:12:33]} (11... Bb7 12. Rad1 Rfe8 13. Rfe1 a6 14. Bh6 b5 15. Bxg7 Kxg7 16. dxe5 dxe5 17. axb5 axb5 {0-1 Havasi,G (2393)-Manca,F (2397) Budapest FS06 GM 2017 (6)}) 12. Rfe1 {[%emt 0:00:00]} Rfe8 {[%emt 0:02:37]} 13. Rad1 {[%emt 0:00:00]} exd4 {[%emt 0:02:11]} 14. Nxd4 {[%emt 0:00:00]} Ne5 {[%emt 0:07:56]} 15. b3 {[%emt 0:00:00]} Nfd7 {[%emt 0:08:23]} 16. Be3 {[%emt 0:04:00]} f6 (16... Nc5 $16) 17. f4 $18 {[%emt 0:00:00]} Nf7 {[%emt 0:01:01] [#]} 18. e5 $1 {[%emt 0:00:00][%mdl 512]} fxe5 {[%emt 0:04:18]} 19. Nxc6 {[%emt 0:01:30]} Rac8 20. Nb5 {[%emt 0:00:00]} Bxb5 {[%emt 0:01:37]} 21. axb5 {[%emt 0:00:00][%csl Oc6][%cal Ba4b5,Bb5c6][%mdl 32] Strong Square White (c6)} Nb8 {[%emt 0:04:28] Black is weak on the light squares} 22. Bd5 $36 {[%emt 0:00:00][%mdl 2048] White has strong initiative. White has more active pieces.} Nxc6 {[%emt 0:01:43]} 23. bxc6 {[%emt 0:00:00][%csl Oc6] and fxe5 would now be decisive. White has a strong passed pawn. White plays on the queen side and is better} Rcd8 $2 {[%emt 0:00:08]} (23... Kh8 24. b4 Rf8) 24. fxe5 {[%emt 0:00:00] White is clearly winning.} dxe5 {[%emt 0:00:54]} 25. Rf1 {[%emt 0:00:00]} Rf8 {[%emt 0:00:30]} 26. Rxf7 {[%emt 0:00:00]} Rxf7 {[%emt 0:00:30]} 27. Rf1 {[%emt 0:00:00]} (27. Bxf7+ $142 Kxf7 28. Qxd8 Qxc6 29. Rd7+ (29. Qd7+ Qxd7 30. Rxd7+ Kf6 $18) 29... Qxd7 30. Qxd7+ Kf6 31. Bg5+ (31. Qxa7 g5 $18) 31... Kxg5 32. Qxg7) 27... Rdf8 {[%emt 0:00:30]} 28. Rd1 $2 {[%emt 0:00:00][%mdl 32768] Weighted Error Value: White=0.27 (precise) /Black=1.29 Loss on time!?  Mistake:       	---       	Black=2      Inaccurate:     	---       	Black=2      OK:         	White=4     	Black=8      Best:        	White=2     	---} (28. Rxf7 $18 Rxf7 29. Qf2 (29. Bxf7+ Kxf7 30. Qd5+ Kf6 $18)) 1-0